Cogmind - Beta 13 @@@ ROGUE MODE // 2024.04.18 @ 16:55:45 Player: opdo Result: Self-destructed Performance ------------- Evolutions (2) 1000 Regions Visited (7) 1400 Robots Destroyed (15) 75 Value Destroyed (349) 349 Prototype IDs (23) 460 Alien Tech Used (0) 0 Bonus (300) 300 TOTAL SCORE: 3584 Bonus ------- Aligned with FarCom 300 Cogmind --------- Core Integrity 537/550 Matter 290/300 Energy 100/100 System Corruption 0% Temperature Cool (0) Movement Walking (90) Location -8/Materials Parts ------- > --- POWER (1) -------- (None) > --- PROPULSION (3) --- Potential Leg Potential Leg > --- UTILITY (4) ------ Small Storage Unit High-capacity Storage Unit > --- WEAPON (3) ------- (None) > --- INVENTORY (20) --- Aluminum Leg Wheel Compact Wheel Flight Unit Peak State ------------ > --- POWER ------------ (None) > --- PROPULSION ------- Potential Leg Potential Leg > --- UTILITY ---------- Small Storage Unit High-capacity Storage Unit > --- WEAPON ----------- (None) > --- INVENTORY -------- Aluminum Leg Wheel Compact Wheel Flight Unit [Rating: 22] Favorites ----------- Power Light Nuclear Core Engine Ion Engine Power Core Light Nuclear Core Propulsion Aluminum Leg Leg Aluminum Leg Wheel Wheel Flight Unit Flight Unit Utility Small Storage Unit Device Seismic Detector Storage Small Storage Unit Processor Visual Processing Unit Weapon Medium Laser Energy Gun Medium Laser Ballistic Gun Light Assault Rifle Build | -11 -10 -10 -9 -9 -9 -8 -8 ------- Run | Yrd Mat Min Mat Min Exi Min Mat Slots Evolved 4 | . . . 2 . . . 2 Power . | . . . . . . . . Propulsion 1 | . . . . . . . 1 Utility 2 | . . . 2 . . . . Weapon 1 | . . . . . . . 1 Parts Attached 31 | 7 6 2 10 3 3 . . Power 5 | 1 2 . 2 . . . . Engine 4 | 1 1 . 2 . . . . Core 1 | . 1 . . . . . . Reactor . | . . . . . . . . Propulsion 15 | 2 3 2 3 3 2 . . Treads . | . . . . . . . . Leg 12 | 2 2 2 3 1 2 . . Wheel 2 | . . . . 2 . . . Hover . | . . . . . . . . Flight 1 | . 1 . . . . . . Utility 6 | 2 . . 3 . 1 . . Device 3 | 1 . . 2 . . . . Storage 2 | 1 . . . . 1 . . Processor 1 | . . . 1 . . . . Hackware . | . . . . . . . . Protection . | . . . . . . . . Artifact . | . . . . . . . . Weapon 5 | 2 1 . 2 . . . . Energy Gun 4 | 2 . . 2 . . . . Energy Cannon . | . . . . . . . . Ballistic Gun 1 | . 1 . . . . . . Ballistic Cannon . | . . . . . . . . Launcher . | . . . . . . . . Special Weapon . | . . . . . . . . Impact Weapon . | . . . . . . . . Slashing Weapon . | . . . . . . . . Piercing Weapon . | . . . . . . . . Special Melee Weapon . | . . . . . . . . Unidentified Prototypes . | . . . . . . . . Parts Lost 13 | . 7 . 6 . . . . Power 4 | . 2 . 2 . . . . Propulsion 4 | . 2 . 2 . . . . Utility 2 | . 1 . 1 . . . . Weapon 3 | . 2 . 1 . . . . Highest Loss Streak 7 | . 7 . 5 . . . . To Critical Strikes . | . . . . . . . . Average Slot Usage (%) 54 | . 86 71 57 32 33 44 36 Engine 3 | . 9 . 6 . . . . Core 2 | . 1 14 1 . . . . Leg 16 | . 23 27 20 . 12 22 18 Wheel 5 | . . . . 21 9 . . Device 3 | . 11 . 6 . . . . Storage 13 | . 14 14 11 11 12 22 18 Energy Gun 4 | . 17 . 7 . . . . Ballistic Gun 3 | . 6 14 1 . . . . Naked Turns . | . . . . . . . . Heaviest Build 45 | 13 15 11 14 5 45 45 45 Greatest Support 60 | 20 20 20 20 26 60 60 60 Greatest Overweight (x) 3 | 3 2 2 2 1 . . . Average Overweight (x) . | . . . . . . . . Largest Inventory Capacity 20 | 8 8 8 8 8 20 20 20 Average Capacity 9 | 7 8 8 8 8 9 20 20 Most Carried 5 | 5 4 4 4 4 4 4 4 Average Carried 3 | 3 3 3 3 2 3 4 4 Final Capacity 20 | 8 8 8 8 8 20 20 20 Final Carried 4 | 4 3 3 4 2 4 4 4 Class Distribution -------------------- 100% | Mutant Dominant Class ---------------- Mutant | -10/Materials Mutant | -10/Mines Mutant | -9/Materials Mutant | -9/Mines Mutant | -9/Exiles Mutant | -8/Mines Mutant | -8/Materials Resources | -11 -10 -10 -9 -9 -9 -8 -8 ----------- Run | Yrd Mat Min Mat Min Exi Min Mat Matter Collected 471 | 208 111 . 43 . 109 . . Remotely . | . . . . . . . . Salvage Created 459 | 92 260 . 107 . . . . Parts 27 | 12 9 . 6 . . . . Haulers Intercepted . | . . . . . . . . Recyclers Shooed 1 | . 1 . . . . . . Parts Field Recycled . | . . . . . . . . Retrieved Matter . | . . . . . . . . Parts Self-Destructed . | . . . . . . . . Prevented . | . . . . . . . . Kills | -11 -10 -10 -9 -9 -9 -8 -8 ------- Run | Yrd Mat Min Mat Min Exi Min Mat Combat Hostiles Destroyed 10 | . 8 . 2 . . . . Guns 10 | . 8 . 2 . . . . Classes Destroyed 5 | 1 2 . 2 . . . . Tunneler 4 | 4 . . . . . . . Operator 1 | . . . 1 . . . . Swarmer 3 | . 3 . . . . . . Grunt 6 | . 5 . 1 . . . . Sentry 1 | . . . 1 . . . . Best Kill Streak 4 | 4 3 . 2 . . . . Combat Bots Only 3 | . 3 . 2 . . . . Max Kills in Single Turn 1 | 1 1 . 1 . . . . Gunslinging . | . . . . . . . . Exploded . | . . . . . . . . Melee . | . . . . . . . . Uniques/NPCs Destroyed . | . . . . . . . . Combat | -11 -10 -10 -9 -9 -9 -8 -8 -------- Run | Yrd Mat Min Mat Min Exi Min Mat Hostile Shots Fired 172 | . 79 . 82 . . . 11 Missed 59 | . 16 . 36 . . . 7 Damage Taken 1546 | . 805 . 684 . . . 57 Core 565 | . 249 . 303 . . . 13 Absorbed by Shields . | . . . . . . . . Core Remaining (%) 41 | 100 . . . . . 24 . Volleys Fired 62 | 5 44 . 13 . . . . Largest 2 | 2 2 . 1 . . . . Hottest 100 | 100 100 . 65 . . . . Shots Fired 87 | 10 64 . 13 . . . . Gun 87 | 10 64 . 13 . . . . Cannon . | . . . . . . . . Launcher . | . . . . . . . . Special . | . . . . . . . . Kinetic 31 | . 31 . . . . . . Thermal 56 | 10 33 . 13 . . . . Explosive . | . . . . . . . . Electromagnetic . | . . . . . . . . Robot Hit Streak 11 | 4 11 . 6 . . . . Robot Miss Streak 5 | 1 5 . 5 . . . . Penetration Max . | . . . . . . . . Secondary Targets 2 | . 2 . . . . . . Max Gunslinging Chain 1 | . 1 . . . . . . Shots Hit Robots 58 | 6 45 . 7 . . . . Core Hits 26 | 4 18 . 4 . . . . Critical Kills . | . . . . . . . . Critical Parts Destroyed . | . . . . . . . . Critical Strikes 4 | 2 2 . . . . . . Burn 4 | 2 2 . . . . . . Melee Attacks . | . . . . . . . . Impact . | . . . . . . . . Slashing . | . . . . . . . . Piercing . | . . . . . . . . Sneak Attacks . | . . . . . . . . Combat Hostiles . | . . . . . . . . Follow-up Attacks . | . . . . . . . . Damage Inflicted 719 | 75 534 . 110 . . . . Guns 719 | 75 534 . 110 . . . . Cannons . | . . . . . . . . Explosions . | . . . . . . . . Melee . | . . . . . . . . Ramming . | . . . . . . . . Kinetic 206 | . 206 . . . . . . Thermal 513 | 75 328 . 110 . . . . Explosive . | . . . . . . . . Electromagnetic . | . . . . . . . . Impact . | . . . . . . . . Slashing . | . . . . . . . . Piercing . | . . . . . . . . Highest Corruption . | . . . . . . . . Average Corruption . | . . . . . . . . Corruption Purged . | . . . . . . . . Corruption Blocked . | . . . . . . . . Overload Shots . | . . . . . . . . Overflow Damage . | . . . . . . . . Projectiles . | . . . . . . . . Explosions . | . . . . . . . . Melee . | . . . . . . . . Knockbacks . | . . . . . . . . Impact . | . . . . . . . . Kinetic . | . . . . . . . . Secondary . | . . . . . . . . Self-Inflicted Damage . | . . . . . . . . Shots . | . . . . . . . . Rammed . | . . . . . . . . Targets Rammed . | . . . . . . . . Kicked . | . . . . . . . . Crushed . | . . . . . . . . Highest Temperature 432 | 117 432 . 93 . . . . Average Temperature 153 | 54 189 . 46 . . . . Received Heat Transfer 633 | . 378 . 237 . . . 18 Effects 2 | . 2 . . . . . . Shutdowns 1 | . 1 . . . . . . Interference 1 | . 1 . . . . . . Siege Activations . | . . . . . . . . Robots Corrupted . | . . . . . . . . Combat Hostiles . | . . . . . . . . Parts Fried . | . . . . . . . . Impact Corruptions . | . . . . . . . . Robots Melted . | . . . . . . . . Combat Hostiles . | . . . . . . . . Parts Melted 7 | 3 2 . 2 . . . . Heat Transferred 1739 | 370 1110 . 259 . . . . Parts Sabotaged . | . . . . . . . . Parts Stolen . | . . . . . . . . Parts Stripped . | . . . . . . . . Power Chain Reactions . | . . . . . . . . Alert | -11 -10 -10 -9 -9 -9 -8 -8 ------- Run | Yrd Mat Min Mat Min Exi Min Mat Peak Influence 154 | 20 153 51 154 40 . . 35 Initial 51 | . 13 51 19 40 . . . Average 52 | 6 76 51 82 40 . . 9 Maximum Alert Level . | . . . . . . . . Low Security (%) 100 | 100 100 100 100 100 . 100 100 Level 1 . | . . . . . . . . Level 2 . | . . . . . . . . Level 3 . | . . . . . . . . Level 4 . | . . . . . . . . Level 5 . | . . . . . . . . High Security . | . . . . . . . . Max Security . | . . . . . . . . Squads Dispatched 2 | . . . . . . . 2 Investigation 1 | . . . . . . . 1 Extermination . | . . . . . . . . Reinforcement 1 | . . . . . . . 1 Assault . | . . . . . . . . Garrison . | . . . . . . . . Intercept . | . . . . . . . . Searches Triggered . | . . . . . . . . Construction Impeded . | . . . . . . . . Haulers Reinforced . | . . . . . . . . Active Scanning Responses . | . . . . . . . . Cargo Convoy Interrupts . | . . . . . . . . Stealth | -11 -10 -10 -9 -9 -9 -8 -8 --------- Run | Yrd Mat Min Mat Min Exi Min Mat Distress Signals 4 | . 1 . 2 . . . 1 Communications Jammed . | . . . . . . . . Distress Signals . | . . . . . . . . Times Spotted 34 | . 10 . 17 . . . 7 Peak Tracking Total 13 | . 6 . 13 . . . 9 Tactical Retreats . | . . . . . . . . Traps | -11 -10 -10 -9 -9 -9 -8 -8 ------- Run | Yrd Mat Min Mat Min Exi Min Mat Traps Triggered 4 | . 1 . 3 . . . . Indirectly . | . . . . . . . . Trap Hack Attempts . | . . . . . . . . Triggered . | . . . . . . . . Disarmed . | . . . . . . . . Reprogrammed . | . . . . . . . . Reused . | . . . . . . . . Traps Extracted . | . . . . . . . . Installed . | . . . . . . . . Triggered . | . . . . . . . . Machines | -11 -10 -10 -9 -9 -9 -8 -8 ---------- Run | Yrd Mat Min Mat Min Exi Min Mat Machines Disabled . | . . . . . . . . Max in Single Turn . | . . . . . . . . Machines Repaired . | . . . . . . . . Machines Dismantled . | . . . . . . . . Machines Sabotaged . | . . . . . . . . Overloaded Fab Kills . | . . . . . . . . Hacking | -11 -10 -10 -9 -9 -9 -8 -8 --------- Run | Yrd Mat Min Mat Min Exi Min Mat Machines Accessed 6 | . . . 2 . 2 . 2 Terminals 4 | . . . 2 . . . 2 Fabricators . | . . . . . . . . Repair Stations . | . . . . . . . . Recycling Units . | . . . . . . . . Scanalyzers . | . . . . . . . . Garrison Access . | . . . . . . . . Total Hacks 11 | . . . 4 . 2 . 5 Successful 4 | . . . . . 2 . 2 Failed 7 | . . . 4 . . . 3 Catastrophic 2 | . . . . . . . 2 Database Lockouts . | . . . . . . . . Manual 9 | . . . 4 . 1 . 4 Terminals 9 | . . . 4 . . . 5 Fabricators . | . . . . . . . . Repair Stations . | . . . . . . . . Recycling Units . | . . . . . . . . Scanalyzers . | . . . . . . . . Garrison Access . | . . . . . . . . Terminal Hacks 3 | . . . . . 2 . 1 Record 1 | . . . . . 1 . . Alert Level 1 | . . . . . . . 1 Derelict Proto ID Bank 1 | . . . . . 1 . . Fabricator Hacks . | . . . . . . . . Repair Station Hacks . | . . . . . . . . Recycling Unit Hacks . | . . . . . . . . Scanalyzer . | . . . . . . . . Garrison Access Hacks . | . . . . . . . . Unauthorized Hacks 1 | . . . . . . . 1 Terminals 1 | . . . . . . . 1 Botnet 1 | . . . . . . . 1 Fabricators . | . . . . . . . . Repair Stations . | . . . . . . . . Recycling Units . | . . . . . . . . Scanalyzers . | . . . . . . . . Garrison Access . | . . . . . . . . Data Cores Recovered 1 | . . . 1 . . . . Used . | . . . . . . . . Hacking Detections 4 | . . . 2 . . . 2 Full Trace Events 2 | . . . 1 . . . 1 Feedback Events . | . . . . . . . . Feedback Blocked . | . . . . . . . . Robot Schematics Acquired . | . . . . . . . . Robots Built . | . . . . . . . . Authchips . | . . . . . . . . Time . | . . . . . . . . Total Robot Build Rating . | . . . . . . . . Part Schematics Acquired . | . . . . . . . . Parts Built . | . . . . . . . . Authchips . | . . . . . . . . Time . | . . . . . . . . Total Part Build Rating . | . . . . . . . . Parts Repaired . | . . . . . . . . Time . | . . . . . . . . Parts Recycled . | . . . . . . . . Recycled Matter . | . . . . . . . . Retrieved Matter . | . . . . . . . . Retrieved Components . | . . . . . . . . Parts Scanalyzed . | . . . . . . . . Part Schematics Acquired . | . . . . . . . . Parts Damaged . | . . . . . . . . Bothacking | -11 -10 -10 -9 -9 -9 -8 -8 ------------ Run | Yrd Mat Min Mat Min Exi Min Mat Used RIF Installer . | . . . . . . . . Robots Hacked . | . . . . . . . . Non-combat . | . . . . . . . . Combat . | . . . . . . . . Robot Hacks Applied . | . . . . . . . . Relay Couplers Released . | . . . . . . . . Fabnet Peak Effective % . | . . . . . . . . Robots Rewired . | . . . . . . . . Allies Hacked . | . . . . . . . . Hacks Repelled . | . . . . . . . . Allies | -11 -10 -10 -9 -9 -9 -8 -8 -------- Run | Yrd Mat Min Mat Min Exi Min Mat Total Allies . | . . . . . . . . Largest Group . | . . . . . . . . Highest-Rated Group . | . . . . . . . . Highest-Rated Ally . | . . . . . . . . Total Orders . | . . . . . . . . Ally Attacks . | . . . . . . . . Total Damage . | . . . . . . . . Kills . | . . . . . . . . Allies Corrupted . | . . . . . . . . Allies Melted . | . . . . . . . . Intel | -11 -10 -10 -9 -9 -9 -8 -8 ------- Run | Yrd Mat Min Mat Min Exi Min Mat Robot Analysis Total . | . . . . . . . . Derelict Logs Recovered 2 | . . 1 . 1 . . . Drone Launches . | . . . . . . . . Drone Recoveries . | . . . . . . . . Exploration | -11 -10 -10 -9 -9 -9 -8 -8 ------------- Run | Yrd Mat Min Mat Min Exi Min Mat Turns Passed 1349 | 96 231 195 243 245 243 60 36 Spaces Moved 1092 | 58 71 160 168 265 264 67 39 Core 30 | 10 1 . 12 7 . . . Treads . | . . . . . . . . Legs 671 | 48 55 159 156 . 147 67 39 Wheels 375 | . . . . 258 117 . . Hover . | . . . . . . . . Flight 16 | . 15 1 . . . . . Fastest Speed 50 | 50 100 120 100 90 90 90 90 Average Speed 103 | 114 139 120 120 90 90 90 90 Slowest Speed 210 | 200 210 210 150 100 90 90 90 Overloaded Moves . | . . . . . . . . Propulsion Burnouts . | . . . . . . . . Robots Hopped . | . . . . . . . . Cave-ins Triggered . | . . . . . . . . Exploration Rate (%) 33 | 4 25 47 32 60 60 30 7 Regions Visited 7 Branch Regions 4 Pre-discovered Areas 2 | . . 1 . . 1 . . Known Exits Taken 2 | . . . 1 . 1 . . Unknown Exits Taken 5 | 1 1 1 . 1 . 1 . Scrap Searched . | . . . . . . . . Spaces Dug . | . . . . . . . . Terrain Destroyed . | . . . . . . . . Melee . | . . . . . . . . Projectile . | . . . . . . . . AOE . | . . . . . . . . Terrain Rammed . | . . . . . . . . Walls Destroyed . | . . . . . . . . Machines Disabled . | . . . . . . . . Actions | -11 -10 -10 -9 -9 -9 -8 -8 --------- Run | Yrd Mat Min Mat Min Exi Min Mat Total 1214 | 74 144 162 191 270 268 66 39 Wait 27 | . 24 . . 3 . . . Move 1085 | 57 70 159 167 264 263 66 39 Hop . | . . . . . . . . Pick Up 5 | 5 . . . . . . . Fast Attach 21 | 6 3 . 9 . 3 . . Attach 6 | 1 2 1 . 2 . . . Detach 3 | . . 1 . . 2 . . Swap 4 | . 1 1 1 1 . . . Drop 1 | . . . 1 . . . . Fire 62 | 5 44 . 13 . . . . Melee . | . . . . . . . . Ram . | . . . . . . . . Kick . | . . . . . . . . Crush . | . . . . . . . . Escape Stasis . | . . . . . . . . Rewire . | . . . . . . . . Trap . | . . . . . . . . Miscellaneous . | . . . . . . . . Route ------- -11/Scrapyard -10/Materials -10/Mines -9/Materials -9/Mines (discovered 3 exits: *Mat x2 / *Exi) -9/Exiles (discovered 2 exits: *Min x2) -8/Mines -8/Materials History --------- Turn | Location | Event 8 | -11/Scrapyard | Discovered new exit (range 16) 97 | -11/Scrapyard | Entered Materials 196 | -10/Materials | Discovered new exit (range 16) 254 | -10/Materials | Core integrity fell below 50% 283 | -10/Materials | Core integrity fell below 20% 318 | -10/Materials | Build established: Mutant 320 | -10/Materials | Lost 7 parts (2p2n1u2w) 328 | -10/Materials | Entered Mines 329 | -10/Mines | Learned location of Storage (-8) 490 | -10/Mines | Discovered new exit (range 11) 523 | -10/Mines | Entered Materials 523 | -9/Materials | Evolved 2 slots: Utility x2 524 | -9/Materials | Identified exit to Mines 754 | -9/Materials | Core integrity fell below 50% 766 | -9/Materials | Entered Mines 790 | -9/Mines | Lost 5 parts (1p2n1u1w) 791 | -9/Mines | Learned Materials terminal intel 834 | -9/Mines | Discovered new exit (range 8) 918 | -9/Mines | Discovered new exit (range 5) 1007 | -9/Mines | Deemed a non-threat by the Exiles lab entrance 1008 | -9/Mines | Discovered new exit (range 5) 1011 | -9/Mines | Entered Exiles 1012 | -9/Exiles | Identified exit to Mines 1026 | -9/Exiles | Discovered exit to Mines (range 15) 1036 | -9/Exiles | Met 8R-AWN 1048 | -9/Exiles | Met EX-HEX 1075 | -9/Exiles | Met EX-BIN 1089 | -9/Exiles | Aligned with FarCom system 1090 | -9/Exiles | Given EX-Vault access code 1111 | -9/Exiles | Opened EX-Vault 1118 | -9/Exiles | Found Potential Leg 1120 | -9/Exiles | Found Potential Leg 1141 | -9/Exiles | Warned to stay clear of 0b10 Research branches 1167 | -9/Exiles | Met EX-DEC 1175 | -9/Exiles | Learned location of Zion (-6) 1254 | -9/Exiles | Left Exiles lab with Potential Leg 1254 | -9/Exiles | Entered Mines 1305 | -8/Mines | Discovered new exit (range 10) 1314 | -8/Mines | Entered Materials 1314 | -8/Materials | Evolved 2 slots: Propulsion x1, Weapon x1 1315 | -8/Materials | Loaded intel: 12 terminal locations 1350 | -8/Materials | Self-destructed Last Messages --------------- 01315_ O-24 Administrator: "IFF HANDSHAKE FAILED. SECURING TERMINAL." 01320_ ALERT: Hostiles spotted, dispatching reinforcements to Terminal M006. 01326_ Connecting with Terminal... 01326_ Current location identified: Materials >>Trojan(Botnet) Trojan loaded successfully. Testing... Terminal linked with 0 systems. Awaiting botnet instructions. >>Alert(Check) Current Alert Level: Low Security 01341_ K-01 Serf collects debris. 01342_ W-25 Informer sends out distress signal. 01344_ Connecting with Terminal... 01344_ ALERT: Suspicious activity at Terminal M010. Dispatching Investigation squad. 01349_ K-01 Serf collects debris. 01350_ Slug penetrates K-01 Serf. Map ----- +----------------------------------------------------+ | ???????????????????????????????????????????????""" | | ?????????????????????????????????????????????????? | | ?????????????????????????????????????????????????? | | ?????????????????????????????????????????????????? | | ?????????????????????????????????????????????????? | | ?????????????????????????????????????????????????? | | ?????????????????????????????????????????????????? | | ?????????????????????????????????????????????????? | | ?????????????????????????????????????????????????? | | ?????????????????????????????????????????????????? | | ?????????????????????????????????????????????????? | | ?????????????????????????????????????????????????? | | ?????????????????????????????????????????????????? | | ?????????????????????????????????????????????????? | | ?????????????????????????????????????????????????? | | ?????????????????a#???#####??????????????????????? | | ""??????????????? #### ??????????????????????? | | ""??????????????w? ???Y??????????????????? | | "T???????????????? ! ??????????????????????? | | ""?????????g??????""" #??????????????????????? | | ""?????????g??????""" #??????????????????????? | | ?????????????????"""" #??????????????????????? | | ????????????????""""" w #?######???????????????? | | ?????????? g""""""" #? #???????????????? | | ?????????? #! #???????????????? | | ?????????? b @# #???????????????? | | ????????????????#"T"###k + """ #???????????????? | | ??????????gg?????"""??# u # """ #???????????????? | | ??????????????????????# # """ #????#??????????? | | ??????????????????????# ########### ###????????? | | ??????????????????????# g #????????? | | ?????????????????????## +????????? | | ?????????????????????#T """g #????????? | | ?????????????????????## "G" ######l#????????? | | ??????????????????????# h" " #???????????????? | | ??????????????????????# #???????????????? | | ??????????????????????# #???????????????? | | ??????????????????????# #?""????????????? | | ??????????????????????# """ +?""????????????? | | ??????????????????????# """ # T"????????????? | | ??????????????????????+ """ ## ""????????????? | | ??????????????????????# #??""????????????? | | ??????????????????????# #????????????????? | | ?????????????########?# #????????????????? | | ????????????? ?# #????????????????? | | ?????????????? # #"T"# #????????????????? | | ???????????????"" """ # ##### #????????????????? | | ???????????????"" """ + #???# #????????????????? | | ???????????????"" """ # #???? #???????????T????? | | ???????????????"" """ # #???? #????????????????? | +----------------------------------------------------+ Best States ------------- Heat Dissipation 38 Energy Generation 14 Energy Capacity 250 Matter Stores 300 Matter Capacity 300 Sight Range 18 Terrain Scan Density 10 Evasion (%) 57 Item Schematics ----------------- None Robot Schematics ------------------ None Fabricated ------------ Nothing Alien Tech Used ----------------- None Achievements -------------- None Challenges ------------ None Game ------ Seed ArcHellfireTube Manual? 0 Play Time 00:09:08 Cumulative 41.8 hours Start 2024.04.18 @ 16:46:53 End 2024.04.18 @ 16:55:45 Sessions 1 Manual Loads 0 Difficulty Rogue Special Mode None Game No. 112 Rogue 110 Adventurer 2 Explorer 0 Win Type - Total 0 Types 0/0/0/0/0/0/0/0/0 Lore% 34 Gallery% 48 Achievement% 34 Wizard Run 0 Options --------- Layout 2 ASCII 0 Keyboard 0 Movement Arrows Keybinds 0 Fullscreen 2 Font 24/Smallcaps Map View 50x44 Zoom Use 0% Tactical HUD 1 Map Filters NONE Filters NONE Steam 1 RUN: 00bd4cc4-494d-4e61-a505-3f9c5077e1d3